bitfinex/quotes_ETHUSD_20240915
["timestamp","ask_amount","ask_price","bid_price","bid_amount"]
[1726424517052,19.70592406,2383.8,2383.7,1.56259646]
[1726424517266,22.96430512,2383.8,2383.7,1.56259646]
[1726424517577,19.70592406,2383.8,2383.7,2.89851922]
[1726424518157,19.70592406,2383.8,2383.7,9.59961922]
[1726424518976,19.70592406,2383.8,2383.7,9.59836469]
[1726424519494,19.70592406,2383.8,2383.7,2.89726469]
[1726424519847,22.54481812,2383.8,2383.7,2.89726469]
[1726424520352,22.54481812,2383.8,2383.7,2.89704742]
[1726424521901,22.54481812,2383.8,2383.7,2.01603445]
[1726424522063,22.54481812,2383.8,2383.7,2.89704742]
[1726424522262,22.54481812,2383.8,2383.7,0.45469252]
[1726424522466,22.54481812,2383.8,2383.7,2.01526868]
[1726424522882,22.54481812,2383.8,2383.7,2.01560155]
[1726424523183,19.70592406,2383.8,2383.7,2.01558227]
[1726424523749,19.70592406,2383.8,2383.7,1.56088975]
[1726424523950,19.70592406,2383.8,2383.7,2.01566996]
[1726424524553,19.70592406,2383.8,2383.7,2.01568154]
[1726424524761,19.70592406,2383.8,2383.7,1.56088975]
[1726424524960,19.70592406,2383.8,2383.7,2.01580633]
[1726424525159,19.70592406,2383.8,2383.7,1.56088975]
[1726424526955,19.70592406,2383.8,2383.7,3.12179285]
[1726424527159,19.70592406,2383.8,2383.7,1.5609031]
[1726424531896,19.70592406,2383.8,2383.7,1.56127553]
[1726424533899,0.08575097,2383.8,2383.7,10.8325885]
[1726424534103,0.08575097,2383.8,2383.7,22.82913731]
[1726424534263,19.62017309,2384.0,2383.8,4.19485]
[1726424534463,19.62017309,2384.0,2383.9,2.44046947]
[1726424536395,19.62017309,2384.0,2383.9,2.43973062]
[1726424537141,19.62017309,2384.0,2383.9,5.75533668]
[1726424537336,18.51921,2384.4,2383.9,5.75533668]
[1726424537337,19.62017309,2384.3,2383.9,5.75533668]
[1726424537640,19.62017309,2384.3,2384.0,11.04142]
[1726424537939,19.62017309,2384.3,2384.1,1.5813286]
[1726424538142,19.62017309,2384.3,2384.0,11.92050394]
[1726424538343,19.62017309,2384.3,2384.1,2.4603261]
[1726424538649,19.62017309,2384.3,2384.2,1.58113216]
[1726424539342,19.62017309,2384.3,2384.0,16.11503394]
[1726424539638,19.62017309,2384.3,2384.1,1.58394522]
[1726424539847,19.62017309,2384.3,2384.0,16.11503394]
[1726424540005,19.62017309,2384.3,2384.1,1.58398087]
[1726424540200,19.62017309,2384.3,2384.0,16.11503394]
[1726424540445,19.62017309,2384.3,2384.1,1.58402447]
[1726424540628,19.62017309,2384.3,2384.0,16.11503394]
[1726424540803,19.62017309,2384.3,2384.1,5.77843965]
[1726424541142,19.62017309,2384.3,2384.1,4.19442]
[1726424541801,0.08572149,2384.2,2384.1,4.19442]
[1726424541998,19.62017309,2384.3,2384.1,6.65765285]
[1726424542235,19.62017309,2384.3,2384.2,1.58403891]
[1726424543445,19.62017309,2384.5,2384.3,6.8468]
[1726424543664,19.62017309,2384.5,2384.4,1.58367695]
[1726424543864,19.62017309,2384.6,2384.4,1.58367695]
[1726424544073,19.62017309,2384.6,2384.3,7.72599394]
[1726424544371,19.62017309,2384.6,2384.4,1.58366871]
[1726424544552,19.62017309,2384.6,2384.3,7.72599394]
[1726424544866,19.62017309,2384.6,2384.4,1.58358565]
[1726424545022,19.62017309,2384.6,2384.3,11.92004394]
[1726424545222,19.62017309,2384.6,2384.4,1.58359691]
[1726424545463,19.62017309,2384.6,2384.4,4.1939]
[1726424545969,19.62017309,2384.6,2384.5,1.58334319]
[1726424546471,19.62017309,2384.6,2384.4,4.1939]
[1726424549261,19.62017309,2384.5,2384.4,4.1939]
[1726424549424,19.62017309,2384.5,2384.4,5.7767234]
[1726424549948,19.62017309,2384.5,2384.4,4.1939]
[1726424554804,19.62017309,2384.5,2384.3,11.04087]
[1726424555011,6.6755,2384.6,2384.3,4.19407]
[1726424555693,19.62017309,2384.7,2384.4,4.1939]
[1726424556041,19.62017309,2384.7,2384.4,10.9713]
[1726424556839,19.62017309,2384.7,2384.6,4.19357]
[1726424559550,19.62017309,2384.7,2384.5,4.19375]
[1726424559714,28.12324259,2384.7,2384.4,4.19387]
[1726424560653,28.12324259,2384.7,2384.3,8.38797]
[1726424560955,19.62017309,2384.6,2384.3,8.38797]
[1726424562348,19.62017309,2384.6,2384.4,4.19391]
[1726424565525,19.62017309,2384.6,2384.5,4.19375]
[1726424566105,19.62017309,2384.6,2384.5,5.77505678]
[1726424566267,19.62017309,2384.6,2384.5,4.19375]
[1726424566917,19.62017309,2384.9,2384.5,4.19375]
[1726424567126,19.62017309,2384.9,2384.6,4.19351]
[1726424571875,0.08293478,2384.8,2384.6,4.19351]
[1726424572753,19.70310787,2384.8,2384.6,4.19351]
[1726424573689,19.70310787,2384.8,2384.5,8.38738]
[1726424574488,19.70310787,2384.8,2384.5,4.19363]
[1726424575394,19.70310787,2384.8,2384.5,8.38727]
[1726424575590,19.70310787,2384.8,2384.5,4.19363]
[1726424576117,19.70310787,2384.8,2384.5,8.38728]
[1726424576302,19.70310787,2384.8,2384.5,4.19363]
[1726424576654,19.70310787,2384.8,2384.5,8.38728]
[1726424576882,19.70310787,2384.8,2384.5,4.19363]
[1726424578489,19.70310787,2384.8,2384.6,1.58358986]
[1726424578725,19.70310787,2384.8,2384.5,5.07282394]
[1726424578726,19.62017309,2384.7,2384.5,5.07282394]
[1726424579042,0.08288607,2384.6,2384.5,4.19363]
[1726424579316,0.08288607,2384.6,2384.5,5.7773234]
[1726424580315,0.08288607,2384.6,2384.5,6.65651734]
[1726424583324,0.08288607,2384.6,2384.5,6.65735623]
[1726424584725,0.08288607,2384.6,2384.5,9.21028658]
[1726424584927,0.08288607,2384.6,2384.5,5.01665658]
[1726424585090,19.62017309,2384.8,2384.5,5.01665658]
[1726424585296,19.62017309,2384.8,2384.6,2.46419863]
[1726424585592,22.85179335,2384.8,2384.7,1.58453229]
[1726424585903,22.85179335,2384.8,2384.6,0.87966634]
[1726424586116,22.85179335,2384.8,2384.7,1.58515092]
[1726424586840,22.93500805,2384.8,2384.7,1.58515092]
[1726424589376,22.93500805,2384.8,2384.7,2.46481726]
[1726424590694,22.93500805,2384.8,2384.7,2.45527108]
[1726424594916,19.70338779,2384.8,2384.7,2.45527108]
[1726424595116,0.0832147,2384.8,2384.7,9.46137108]
[1726424595320,0.0832147,2384.8,2384.7,8.58170474]
[1726424595506,19.62017309,2385.0,2384.7,12.00099249]
[1726424595709,19.62017309,2385.1,2384.8,2.45585668]
[1726424596024,21.86150609,2385.1,2384.9,1.5754721]
[1726424596227,19.62017309,2385.1,2384.8,0.88038458]
[1726424596419,19.62017309,2385.1,2384.9,1.57550344]
[1726424596625,19.62017309,2385.1,2384.8,0.88038458]
[1726424596827,19.62017309,2385.1,2384.9,1.57555933]
[1726424596991,20.70932783,2385.1,2384.8,0.88038458]
[1726424597192,20.70932783,2385.1,2384.9,1.5755469]
[1726424597406,20.70932783,2385.1,2384.8,0.88038458]
[1726424597729,20.70932783,2385.1,2384.9,1.57553719]
[1726424598033,20.70932783,2385.1,2384.8,0.88038458]
[1726424598331,20.70932783,2385.1,2384.9,1.57549697]
[1726424598486,24.90203783,2385.1,2384.8,0.88038458]
[1726424598687,24.90203783,2385.1,2384.9,1.57550379]
[1726424598907,24.90203783,2385.1,2384.8,0.88038458]
[1726424598908,1.8275695,2385.0,2384.7,7.88648458]
[1726424599137,1.8275695,2385.0,2384.8,1.57559401]
[1726424599285,21.44774259,2385.0,2384.7,7.88648458]
[1726424599484,21.44774259,2385.0,2384.8,1.57563425]
[1726424599737,21.44774259,2385.0,2384.7,7.88648458]
[1726424599903,21.44774259,2385.0,2384.8,1.57560914]
[1726424600088,21.44774259,2385.0,2384.7,7.88648458]
[1726424600289,19.62017309,2385.0,2384.8,2.45601607]
[1726424600591,19.62017309,2385.0,2384.7,7.88648458]
[1726424600943,19.62017309,2385.0,2384.8,1.57576217]
[1726424601089,19.62017309,2385.0,2384.7,7.88648458]
[1726424601289,19.62017309,2385.0,2384.8,1.57575755]
[1726424601514,19.62017309,2385.0,2384.7,7.88648458]
[1726424601717,19.62017309,2385.0,2384.8,1.57581148]
[1726424601918,0.0833568,2384.9,2384.7,7.88648458]
[1726424602137,0.0833568,2384.9,2384.8,1.5758175]
[1726424605019,0.0833568,2384.9,2384.8,1.57586101]
[1726424608924,0.0833568,2384.9,2384.8,2.45624559]
[1726424609831,0.0833568,2384.9,2384.8,2.45643213]
[1726424611428,19.62017309,2385.1,2384.8,2.45643213]
[1726424611633,0.08345542,2385.0,2384.9,1.57604755]
[1726424617245,19.70362851,2385.0,2384.9,1.57604755]
[1726424619167,19.70362851,2385.0,2384.8,0.88038458]
[1726424619328,19.70362851,2385.0,2384.9,1.57491688]
[1726424621789,19.70362851,2385.0,2384.9,2.45530146]
[1726424622132,19.70362851,2385.0,2384.9,1.57491688]
[1726424623055,0.08345542,2385.0,2384.9,1.57491688]
[1726424623974,0.08345542,2385.0,2384.9,1.57464546]
[1726424628614,0.08345542,2385.0,2384.9,1.5746643]
[1726424628822,19.70362851,2385.0,2384.9,1.5746643]
[1726424633332,19.70362851,2385.0,2384.8,8.02658458]
[1726424633499,19.70362851,2385.0,2384.9,1.57905792]
[1726424634794,0.08345542,2385.0,2384.9,1.57905792]
[1726424638134,0.08345542,2385.0,2384.9,1.57912943]
[1726424640541,0.08345542,2385.0,2384.9,1.57945292]
[1726424640746,19.70362851,2385.0,2384.9,1.57945292]
[1726424641542,19.70362851,2385.0,2384.7,5.07377458]
[1726424641703,19.70362851,2385.0,2384.8,1.57942845]
[1726424641909,19.70362851,2385.0,2384.9,1.57942845]
[1726424643409,19.70362851,2385.0,2384.8,0.88038458]
[1726424643613,19.70362851,2385.0,2384.7,5.07377458]
[1726424644021,15.25834,2384.8,2384.7,0.88038458]
[1726424644255,8.38678,2384.7,2384.6,1.31879092]
[1726424644406,6.8719,2384.6,2384.3,0.88038458]
[1726424644606,15.2594,2384.5,2384.4,1.58033522]
[1726424644920,15.2594,2384.5,2384.0,0.88038458]
[1726424644921,11.06617,2384.2,2384.0,0.88038458]
[1726424645149,0.08055036,2384.1,2383.9,5.07514458]
[1726424645453,12.87191953,2384.4,2383.9,5.07514458]
[1726424645454,19.62017309,2384.3,2384.0,2.46015136]
[1726424645740,21.44774259,2384.3,2384.1,1.57953382]
[1726424645940,21.44774259,2384.3,2384.0,0.88061754]
[1726424646172,21.44774259,2384.3,2384.1,1.57860945]
[1726424646357,21.44774259,2384.3,2384.0,0.88061754]
[1726424646565,1.8275695,2384.1,2383.8,0.88061754]
[1726424646868,1.8275695,2384.1,2383.9,1.57810532]
[1726424647179,0.08013744,2384.0,2383.8,0.88061754]
[1726424647468,6.95203744,2384.0,2383.9,1.57812986]
[1726424647765,1.8275695,2383.9,2383.7,0.88061754]
[1726424647981,1.8275695,2383.9,2383.8,1.57767369]
[1726424648640,6.8719,2384.0,2383.8,1.57767369]
[1726424648955,1.8275695,2384.1,2383.7,0.88061754]
[1726424649145,1.8275695,2384.1,2383.8,1.57701813]
[1726424649347,1.8275695,2384.1,2383.7,0.88061754]
[1726424649564,19.62017309,2384.0,2383.6,0.88061754]
[1726424649874,19.62017309,2384.0,2383.7,1.57647641]
[1726424650044,19.62017309,2384.0,2383.6,0.88061754]
[1726424650238,19.62017309,2384.0,2383.7,1.57645684]
[1726424650435,19.62017309,2384.0,2383.5,16.40691754]
[1726424650773,19.62017309,2384.0,2383.6,1.57596137]
[1726424650979,19.62017309,2384.0,2383.5,16.40691754]
[1726424651129,19.62017309,2384.0,2383.6,1.57575818]
[1726424651330,19.62017309,2384.0,2383.5,16.40691754]
[1726424651532,19.62017309,2384.0,2383.6,1.57580212]
[1726424651733,19.62017309,2384.0,2383.6,4.19531]
[1726424652347,19.62017309,2384.0,2383.6,6.18188017]
[1726424653572,19.62017309,2384.0,2383.7,11.00621]
[1726424654778,19.62017309,2384.0,2383.9,4.1948]
[1726424654947,19.62017309,2384.0,2383.9,11.0059]
[1726424655548,19.62017309,2384.4,2383.9,11.0059]
[1726424656161,19.62017309,2384.4,2384.0,4.1946]
[1726424656352,19.62017309,2384.4,2384.0,5.89742295]
[1726424657291,19.62017309,2384.4,2384.0,5.89734295]
[1726424657495,14.1068,2384.6,2384.2,4.19426]
[1726424657496,19.62017309,2384.5,2384.2,4.19426]
[1726424657658,19.62017309,2384.5,2384.2,5.36915876]
[1726424659181,19.62017309,2384.5,2384.3,11.00519]
[1726424659396,19.62017309,2384.5,2384.3,6.8111]
[1726424659907,19.62017309,2384.5,2384.3,11.00514]
[1726424661499,19.62017309,2384.7,2384.3,11.00514]
[1726424661674,19.62017309,2384.6,2384.3,11.00514]
[1726424661862,19.70001268,2384.6,2384.3,11.00514]
[1726424664085,19.70001268,2384.6,2384.4,4.19389]
[1726424666006,19.70001268,2384.6,2384.4,5.713807]
[1726424666205,0.07983959,2384.6,2384.5,11.28625]
[1726424669626,19.62017309,2384.9,2384.6,4.19347]
[1726424669769,19.62017309,2384.9,2384.6,6.07619065]
[1726424669969,19.62017309,2384.9,2384.7,4.19338]
[1726424673423,19.62017309,2384.8,2384.7,4.19338]
[1726424676405,19.62017309,2384.8,2384.5,15.47983]
[1726424676599,19.62017309,2384.8,2384.6,4.19354]
[1726424677114,0.08011256,2384.7,2384.6,4.19354]
[1726424677418,19.62017309,2384.8,2384.6,4.19354]
[1726424677588,0.08011256,2384.7,2384.6,4.19354]
[1726424677783,19.62017309,2384.8,2384.6,4.19354]
[1726424678014,0.08018141,2384.7,2384.6,5.88617999]
[1726424678216,19.62017309,2384.8,2384.6,5.88617999]
[1726424678412,0.08018141,2384.7,2384.6,5.88617999]
[1726424678915,19.62017309,2384.8,2384.6,5.88617999]
[1726424679090,0.08018141,2384.7,2384.6,5.88617999]
[1726424679291,0.08018141,2384.7,2384.6,4.19354]
[1726424679489,19.62017309,2385.0,2384.6,4.19354]
[1726424679700,0.08018141,2384.7,2384.6,4.19354]
[1726424679893,19.62017309,2385.0,2384.6,4.19354]
[1726424680094,0.08018141,2384.7,2384.6,4.19354]
[1726424680276,19.62017309,2385.0,2384.6,4.19354]
[1726424680822,0.08023011,2384.9,2384.6,4.19354]
[1726424681515,6.7744,2384.8,2384.5,4.19358]
[1726424681877,0.08018141,2384.7,2384.5,4.19358]
[1726424682220,6.7744,2384.8,2384.5,4.19358]
[1726424682380,0.08015705,2384.6,2384.5,4.19358]
[1726424682597,6.7744,2384.8,2384.5,4.19358]
[1726424682801,0.08015705,2384.6,2384.5,4.19358]
[1726424683002,6.7744,2384.8,2384.5,4.19358]
[1726424683224,0.08015705,2384.6,2384.5,4.19358]
[1726424683500,6.7744,2384.8,2384.5,4.19358]
[1726424683733,0.08015705,2384.6,2384.5,4.19358]
[1726424684248,6.7744,2384.8,2384.5,4.19358]
[1726424684914,0.08018141,2384.7,2384.5,4.19358]
[1726424685102,26.39457309,2384.8,2384.5,4.19358]
[1726424685303,0.08015242,2384.7,2384.5,4.19358]
[1726424685605,26.39457309,2384.8,2384.5,4.19358]
[1726424685836,0.08012444,2384.6,2384.5,4.19358]
[1726424686142,26.39457309,2384.8,2384.3,16.25028754]
[1726424686302,26.39457309,2384.8,2384.4,1.57402802]
[1726424686645,0.08012444,2384.6,2384.4,4.19378]
[1726424686841,26.39457309,2384.8,2384.4,4.19378]
[1726424687045,0.08007471,2384.5,2384.4,4.19378]
[1726424687226,26.39457309,2384.8,2384.4,5.76776224]
[1726424687428,19.62017309,2384.8,2384.5,5.76769041]
[1726424687742,19.62017309,2384.8,2384.6,6.9817]
[1726424689628,19.62017309,2384.8,2384.7,4.19339]
[1726424689931,19.62017309,2384.8,2384.6,6.9817]
[1726424690919,19.62017309,2385.0,2384.6,6.9817]
[1726424691844,0.08017213,2384.9,2384.6,6.9817]
[1726424692853,6.65517213,2384.9,2384.5,8.38725]
[1726424693213,6.65517213,2384.9,2384.5,4.19359]
[1726424693419,6.65517213,2384.9,2384.3,5.07458754]
[1726424693420,6.575,2384.8,2384.3,5.07458754]
[1726424693620,10.76822,2384.8,2384.3,4.19397]
[1726424693942,1.67069994,2384.7,2384.3,4.19397]
[1726424694455,8.4025695,2384.5,2384.2,0.88061754]
[1726424694764,8.4025695,2384.5,2383.9,5.07531754]
[1726424694765,19.70019904,2384.4,2383.9,5.07531754]
[1726424694919,19.70019904,2384.4,2383.8,5.07548754]
[1726424694920,6.575,2384.3,2383.8,5.07548754]
[1726424695118,19.70015418,2384.2,2383.9,1.56494173]
[1726424695323,19.70015418,2384.2,2383.8,5.07548754]
[1726424695520,19.70015418,2384.2,2383.9,1.56510664]
[1726424695743,19.70015418,2384.2,2383.8,5.07548754]
[1726424696047,19.70015418,2384.2,2383.9,1.56497035]
[1726424696232,19.70015418,2384.2,2383.8,5.07548754]
[1726424696439,19.70015418,2384.2,2383.9,1.56496925]
[1726424696631,19.70015418,2384.2,2383.8,5.07548754]
[1726424696834,19.70015418,2384.2,2383.9,1.56515583]
[1726424697157,19.70015418,2384.2,2383.8,5.07548754]
[1726424697356,19.70015418,2384.2,2383.9,1.56515504]
[1726424697655,19.70015418,2384.2,2383.8,6.97825794]
[1726424697858,19.70015418,2384.2,2383.9,9.95487084]
[1726424698062,19.70015418,2384.2,2384.0,1.56539084]
[1726424698267,19.70015418,2384.2,2383.9,5.07530754]
[1726424698562,19.70015418,2384.2,2384.0,1.56528995]
[1726424698767,19.70015418,2384.2,2383.9,6.50064998]
[1726424698927,19.70015418,2384.2,2384.0,1.56559173]
[1726424699123,19.70015418,2384.2,2383.9,6.50064998]
[1726424699349,19.70015418,2384.2,2384.0,1.56558102]
[1726424699626,19.70015418,2384.2,2384.1,1.56558102]
[1726424701430,0.07998109,2384.2,2384.1,3.93470075]
[1726424701629,0.07998109,2384.2,2384.1,7.24908033]
[1726424701930,6.575,2384.5,2384.2,4.19411]
[1726424702270,6.575,2384.5,2384.3,1.56612814]
[1726424702469,26.19517309,2384.5,2384.3,4.19409]
[1726424703352,26.19517309,2384.5,2384.4,1.58396119]
[1726424704475,26.19517309,2384.5,2384.4,1.58371362]
[1726424705875,6.575,2384.5,2384.4,1.58371362]
[1726424706744,6.65484019,2384.5,2384.4,1.58371362]
[1726424710448,6.65484019,2384.5,2384.3,4.19409]
[1726424710649,6.65484019,2384.5,2384.4,1.58293476]
[1726424711069,6.65484019,2384.5,2384.4,1.58286132]
[1726424712181,6.65484019,2384.5,2384.4,1.58273387]
[1726424712380,6.65484019,2384.5,2384.3,4.19409]
[1726424712785,6.65484019,2384.5,2384.4,1.58275978]
[1726424713341,6.60484019,2384.5,2384.4,1.58275978]
[1726424715902,6.60484019,2384.5,2384.4,1.59077667]
[1726424717554,19.70001328,2384.5,2384.4,8.13947667]
[1726424717885,19.70001328,2384.5,2384.4,9.80478879]
[1726424718694,19.70001328,2384.5,2384.4,3.25608879]
[1726424718987,19.70001328,2384.5,2384.4,1.59077667]
[1726424720454,19.70001328,2384.5,2384.4,1.58968565]
[1726424721172,19.70001328,2384.5,2384.4,17.95589325]
[1726424721389,0.07984019,2384.5,2384.4,20.51424531]
[1726424721670,19.62017309,2384.9,2384.6,4.19357]
[1726424721875,19.62017309,2384.9,2384.7,1.58968565]
[1726424722084,19.62017309,2384.9,2384.6,5.07159696]
[1726424722288,19.62017309,2384.9,2384.7,1.58932199]
[1726424722606,19.62017309,2384.9,2384.6,5.07159696]
[1726424722900,19.62017309,2384.9,2384.7,1.58919783]
[1726424723107,19.62017309,2384.9,2384.6,7.00083668]
[1726424723401,19.62017309,2384.9,2384.7,1.58931286]
[1726424723603,19.62017309,2384.9,2384.6,7.00083668]
[1726424723803,19.62017309,2384.9,2384.7,1.58930297]
[1726424723964,19.62017309,2384.9,2384.6,7.00083668]
[1726424724167,19.62017309,2384.9,2384.7,1.5893546]
[1726424724384,19.62017309,2384.9,2384.6,7.00083668]
[1726424724568,19.62017309,2384.9,2384.7,1.5895332]
[1726424724799,19.62017309,2384.9,2384.6,7.00083668]
[1726424724978,19.62017309,2384.9,2384.7,1.58959668]
[1726424725173,19.62017309,2384.9,2384.6,7.00083668]
[1726424725392,19.62017309,2384.9,2384.7,1.5896048]
[1726424725591,19.62017309,2384.9,2384.6,7.00083668]
[1726424725791,19.62017309,2384.9,2384.7,1.58958919]
[1726424725992,19.62017309,2384.9,2384.6,11.19430668]
[1726424726169,19.62017309,2384.9,2384.7,1.58957265]
[1726424726372,19.62017309,2384.8,2384.6,7.00073668]
[1726424726707,19.62017309,2384.8,2384.7,1.58955819]
[1726424729084,19.62017309,2384.8,2384.7,1.58951887]
[1726424729907,19.62017309,2384.8,2384.7,1.58937327]
[1726424730110,19.62017309,2384.8,2384.7,21.19050977]
[1726424730265,19.62017309,2384.8,2384.7,31.38622457]
[1726424730465,19.62017309,2385.5,2385.1,4.19257]
[1726424730718,19.62017309,2385.4,2385.2,0.419257]
[1726424730873,19.62017309,2385.3,2385.1,11.19337]
[1726424731068,19.62017309,2385.3,2385.1,15.38597]
[1726424731271,19.69502563,2385.2,2385.1,13.1340659]
[1726424731607,19.69502563,2385.2,2385.1,12.78171602]
[1726424731805,26.51312563,2385.2,2384.8,0.8773678]
[1726424732009,1.8275695,2384.9,2384.7,0.8773678]
[1726424732322,0.07504834,2384.8,2384.6,0.8773678]
[1726424732472,0.07504834,2384.8,2384.6,4.19354]
[1726424732670,0.07504834,2384.8,2384.6,6.49516021]
[1726424732875,6.8181,2385.0,2384.6,6.49516021]
[1726424733121,0.07501674,2384.7,2384.6,4.19354]
[1726424733286,6.8181,2385.0,2384.6,5.78248849]
[1726424733476,0.07501674,2384.7,2384.6,4.19354]
[1726424733691,6.8181,2385.0,2384.6,5.78261947]
[1726424733980,6.8181,2385.0,2384.6,4.19354]
[1726424734182,0.07492053,2384.9,2384.6,4.19354]
[1726424735004,0.07492053,2384.9,2384.7,4.19328]
[1726424735228,0.07492053,2384.9,2384.8,4.19322]
[1726424735738,19.62017309,2385.2,2384.9,11.19381]
[1726424736292,19.62017309,2385.2,2384.9,4.19301]
[1726424736984,0.07489601,2385.1,2384.9,4.19301]
[1726424740089,0.07489601,2385.1,2384.7,11.19408]
[1726424740332,0.07489601,2385.1,2384.7,13.2688312]
[1726424740831,0.07489601,2385.1,2384.8,4.1932]
[1726424741123,19.6950691,2385.1,2384.8,4.1932]
[1726424745703,19.6950691,2385.1,2384.9,4.19304]
[1726424745889,19.6950691,2385.1,2384.7,14.146199]
[1726424745890,6.8181,2385.0,2384.7,4.19329]
[1726424746290,0.07490314,2384.9,2384.7,4.19329]
[1726424746513,0.07490314,2384.9,2384.7,5.7147979]
[1726424746717,19.62017309,2385.1,2384.7,6.5921657]
[1726424746923,19.62017309,2385.1,2384.8,1.58828058]
[1726424747125,19.62017309,2385.1,2384.7,6.5921657]
[1726424747294,19.62017309,2385.1,2384.8,5.78135887]
[1726424747493,19.62017309,2385.1,2384.8,6.13055246]
[1726424747726,19.62017309,2385.1,2384.9,4.19302]
[1726424747903,19.62017309,2385.1,2384.9,15.38668]
[1726424748124,19.62017309,2385.1,2384.9,13.0212995]
[1726424748326,19.62017309,2385.1,2384.9,13.8986673]
[1726424748540,19.62017309,2385.1,2385.0,3.25916067]
[1726424748695,19.62017309,2385.1,2385.0,4.84714262]
[1726424749045,19.62017309,2385.1,2385.0,9.04001262]
[1726424750738,19.62017309,2385.1,2385.0,7.45219871]
[1726424751876,19.69514489,2385.1,2385.0,7.45219871]
[1726424752427,19.69514489,2385.1,2385.0,3.25932871]
[1726424752669,26.47864489,2385.1,2385.0,1.58798195]
[1726424753025,32.49890439,2385.1,2385.0,1.58798195]
[1726424756929,32.49890439,2385.1,2384.6,7.0861]
[1726424757361,26.47864489,2385.1,2384.6,11.27966]
[1726424757674,30.67134489,2385.1,2384.7,2.05443078]
[1726424757864,30.67134489,2385.1,2384.6,7.0861]
[1726424758029,32.49891439,2385.1,2384.6,7.0861]
[1726424758428,32.49891439,2385.1,2384.5,5.0709878]
[1726424758634,32.49891439,2385.1,2384.6,1.58906396]
[1726424758834,19.62017309,2385.0,2384.5,5.0709878]
[1726424759051,0.07479514,2384.9,2384.6,1.58906142]
[1726424759266,0.07479514,2384.9,2384.5,7.01317231]
[1726424759466,0.07479514,2384.9,2384.6,1.58905201]
[1726424759653,0.07479514,2384.9,2384.5,11.20682231]
[1726424759847,0.07479514,2384.9,2384.6,1.5891382]
[1726424760077,6.7835,2384.8,2384.5,0.8773678]
[1726424760374,6.7835,2384.8,2384.4,5.0712878]
[1726424760572,0.07475729,2384.7,2384.5,2.7352256]
[1726424760782,0.07475729,2384.7,2384.5,1.14586773]
[1726424760977,6.7835,2384.8,2384.5,1.14586773]
[1726424761132,0.07473293,2384.6,2384.5,1.14586773]
[1726424761333,6.7835,2384.8,2384.5,2.72443606]
[1726424761573,0.07473293,2384.6,2384.5,1.14586773]
[1726424761815,0.07473293,2384.6,2384.5,2.72459934]
[1726424762021,6.7835,2384.8,2384.5,2.72459934]
[1726424762202,0.07475729,2384.7,2384.5,1.14586773]
[1726424762513,6.7835,2384.8,2384.5,1.14586773]
[1726424762715,0.07473293,2384.6,2384.5,1.14586773]
[1726424762925,6.7835,2384.8,2384.5,2.72471336]
[1726424763134,0.07473293,2384.6,2384.5,1.14586773]
[1726424763333,6.7835,2384.8,2384.5,2.72474221]
[1726424763519,0.07473293,2384.6,2384.5,1.14586773]
[1726424763825,0.07473293,2384.6,2384.5,6.91870224]
[1726424763988,6.7835,2384.8,2384.5,6.91870224]
[1726424764203,6.7835,2384.8,2384.6,1.57904452]
[1726424764204,0.07471743,2384.7,2384.6,1.57904452]
[1726424764494,6.7835,2384.8,2384.6,1.57904452]
[1726424764693,0.07471381,2384.7,2384.5,6.21698553]
[1726424764888,0.07471381,2384.7,2384.6,2.33256501]
[1726424765097,19.62017309,2384.9,2384.6,9.41866501]
[1726424765296,0.07471381,2384.7,2384.6,7.83940372]
[1726424765586,0.07471381,2384.7,2384.6,9.41864982]
[1726424765925,19.62017309,2384.9,2384.6,9.41864982]
[1726424766080,0.07471381,2384.7,2384.6,7.83940372]
[1726424766278,19.62017309,2384.9,2384.6,13.61218227]
[1726424766580,19.62017309,2384.9,2384.7,3.56213333]
[1726424766900,0.07476353,2384.8,2384.7,1.98290478]
[1726424767100,0.07476353,2384.8,2384.7,1.57936697]
[1726424767906,0.07476353,2384.8,2384.7,6.65012477]
[1726424768824,0.07476353,2384.8,2384.7,7.20012477]
[1726424769027,0.07476353,2384.8,2384.7,21.02358758]
[1726424770284,0.07476353,2384.8,2384.7,21.02315863]
[1726424770509,0.07476353,2384.8,2384.7,23.89319465]
[1726424770926,0.07476353,2384.8,2384.7,24.61956228]
[1726424771186,19.62017309,2385.2,2384.8,4.19306]
[1726424771528,19.62017309,2385.2,2384.9,5.77190802]
[1726424771712,19.62017309,2385.2,2384.9,4.19297]
[1726424773431,19.62017309,2385.2,2384.9,6.12717892]
[1726424776485,19.62017309,2385.1,2384.9,6.12717892]
[1726424778732,19.62017309,2385.1,2385.0,1.57894283]
[1726424779815,19.62017309,2385.1,2385.0,1.57898471]
[1726424780719,19.62017309,2385.1,2385.0,2.45728958]
[1726424781948,19.69508935,2385.1,2385.0,2.45728958]
[1726424782545,0.07491626,2385.1,2385.0,8.0595176]
[1726424782958,0.07491626,2385.1,2385.0,8.78584347]
[1726424783275,0.07491626,2385.1,2385.0,9.5121641]
[1726424783459,0.07491626,2385.1,2385.0,8.78584347]
[1726424784547,0.07491626,2385.1,2385.0,8.78563071]
[1726424788649,6.7835,2385.3,2385.0,8.78563071]
[1726424788966,0.07505526,2385.2,2385.1,1.57877195]
[1726424789146,0.07505526,2385.2,2385.1,1.57904639]
[1726424789470,0.07507944,2385.2,2385.1,1.57904639]
[1726424789671,6.7835,2385.3,2385.1,1.57904639]
[1726424789984,0.07507944,2385.2,2385.0,5.79750074]
[1726424790159,0.07507944,2385.2,2385.1,1.57876528]
[1726424790360,6.7835,2385.3,2385.1,1.57876528]
[1726424790542,0.07505526,2385.2,2385.0,5.79750074]
[1726424790739,0.07505526,2385.2,2385.1,1.57874648]
[1726424791048,0.07504555,2385.2,2385.1,1.57874648]
[1726424791232,6.7835,2385.3,2385.1,1.57874648]
[1726424791433,6.7835,2385.3,2385.0,5.07117487]
[1726424791434,0.07504555,2385.2,2385.0,5.07117487]
[1726424791633,6.7835,2385.3,2385.1,1.57865729]
[1726424791875,0.07504555,2385.2,2385.0,0.87830487]
[1726424792047,0.07504555,2385.2,2384.9,5.07122487]
[1726424792228,6.7835,2385.3,2385.0,1.57870516]
[1726424792434,0.07506974,2385.2,2384.9,11.1734636]
[1726424792677,6.7835,2385.3,2385.0,5.77150201]
[1726424792878,0.07504539,2385.1,2385.0,4.19283]
[1726424793173,6.7835,2385.3,2385.0,5.77155834]
[1726424793374,0.07506349,2385.1,2385.0,12.36727153]
[1726424793574,32.22734259,2385.5,2385.0,12.69690518]
[1726424793739,0.07506349,2385.1,2385.0,11.11833]
[1726424793940,19.62017309,2385.4,2385.0,12.69684822]
[1726424794142,0.07506349,2385.1,2385.0,11.11833]
[1726424794372,19.62017309,2385.4,2385.0,12.69681941]
[1726424794532,0.07503931,2385.1,2385.0,11.11833]
[1726424794899,0.07503931,2385.1,2385.0,12.6967828]
[1726424795177,19.62017309,2385.4,2385.0,14.60518874]
[1726424795376,0.07503931,2385.1,2385.0,13.02673594]